fUST/lending_fUST_20240514
["ID","MTS","AMOUNT","RATE_DAILY","PERIOD"]
[326977092,1715670637363,-151.0,0.00043832,7]
[326977093,1715670637372,-151.0,0.00043832,7]
[326977094,1715670637382,-788.512884,0.00043832,7]
[326977095,1715670637391,-2240.09255,0.00043832,7]
[326977096,1715670637464,-1668.034838,0.00043832,7]
[326977097,1715670637474,-788.512884,0.00043832,7]
[326977098,1715670637483,-2240.09255,0.00043832,7]
[326977099,1715670637493,-1668.034838,0.00043832,7]
[326977100,1715670637502,-337.182548,0.00043832,7]
[326977101,1715670637512,-337.182548,0.00043832,7]
[326977102,1715670637521,-1868.77064,0.00043832,7]
[326977103,1715670637531,-1868.77064,0.00043832,7]
[326977104,1715670637540,-244.001732,0.00043832,7]
[326977105,1715670637549,-244.001732,0.00043832,7]
[326977106,1715670637559,-531.175051,0.00043832,7]
[326977107,1715670637568,-531.175051,0.00043832,7]
[326977108,1715670637577,-1223.385485,0.00043832,7]
[326977109,1715670637587,-1223.385485,0.00043832,7]
[326977110,1715670637597,-1201.959778,0.00043832,7]
[326977111,1715670637606,-1201.959778,0.00043832,7]
[326977112,1715670637616,-211.43652904,0.000439,120]
[326977113,1715670637626,-9174.93740199,0.000439,120]
[326977114,1715670637636,-132221.45162184,0.000439,30]
[326977115,1715670637654,-534.602378,0.000439,30]
[326977116,1715670637665,-716.48467108,0.000439,30]
[326977117,1715670637676,-552.72494088,0.000439,30]
[326977118,1715670637690,-40993.52386253,0.000439,30]
[326977186,1715670638644,-151.0,0.00020912,2]
[326977188,1715670638654,-485.850773,0.00020912,2]
[326977190,1715670638663,-1271.662772,0.00022,2]
[326977192,1715670638672,-1271.662772,0.000392,2]
[326977194,1715670638681,-485.850773,0.000392,2]
[326977196,1715670638691,-485.850773,0.000433,2]
[326977198,1715670638701,-1088.21,0.0004349,3]
[326977200,1715670638710,-1271.662772,0.000435,7]
[326977202,1715670638719,-1271.662772,0.000435,7]
[326977204,1715670638728,-144682.633078,0.000439,30]
[326977207,1715670638740,-500.0,0.000439,30]
[326977372,1715670640880,-1271.662772,0.00022,2]
[326977373,1715670640890,-485.850773,0.000435,2]
[326977374,1715670640899,-485.850773,0.00043832,2]
[326977375,1715670640908,-25678.08500674,0.000439,30]
[326977376,1715670640917,-12573.0,0.000439,30]
[326977377,1715670640926,-1015.31171525,0.000439,60]
[326977378,1715670640935,-151.0,0.000439,7]
[326977379,1715670640944,-151.0,0.000439,7]
[326977380,1715670640954,-178.9989,0.000439,7]
[326977381,1715670640964,-178.9989,0.000439,7]
[326977382,1715670640973,-702.892299,0.000439,7]
[326977383,1715670640982,-702.892299,0.000439,7]
[326977384,1715670640991,-1271.662772,0.000439,7]
[326977385,1715670641000,-485.850773,0.000439,2]
[326977386,1715670641009,-291.022988,0.00043903,7]
[326977387,1715670641018,-227.355618,0.00043903,7]
[326977388,1715670641028,-227.355618,0.00043903,7]
[326977389,1715670641038,-351.04623,0.00043903,7]
[326977390,1715670641048,-351.04623,0.00043903,7]
[326977391,1715670641057,-151.0,0.00043903,7]
[326977392,1715670641066,-319.297825,0.00043903,7]
[326977393,1715670641075,-319.297825,0.00043903,7]
[326977394,1715670641084,-151.0,0.00043903,7]
[326977395,1715670641093,-151.0,0.00043903,7]
[326977396,1715670641103,-151.132386,0.00043903,7]
[326977397,1715670641112,-788.512884,0.00043903,7]
[326977398,1715670641121,-2240.09255,0.00043903,7]
[326977399,1715670641131,-1668.034838,0.00043903,7]
[326977400,1715670641140,-788.512884,0.00043903,7]
[326977401,1715670641150,-2240.09255,0.00043903,7]
[326977402,1715670641160,-1668.034838,0.00043903,7]
[326977403,1715670641234,-337.182548,0.00043903,7]
[326977404,1715670641247,-337.182548,0.00043903,7]
[326977405,1715670641256,-1868.77064,0.00043903,7]
[326977406,1715670641265,-1868.77064,0.00043903,7]
[326977407,1715670641274,-244.001732,0.00043903,7]
[326977408,1715670641284,-244.001732,0.00043903,7]
[326977409,1715670641295,-531.175051,0.00043903,7]
[326977410,1715670641304,-531.175051,0.00043903,7]
[326977411,1715670641313,-1223.385485,0.00043903,7]
[326977412,1715670641322,-1223.385485,0.00043903,7]
[326977413,1715670641332,-1201.959778,0.00043903,7]
[326977414,1715670641340,-1201.959778,0.00043903,7]
[326977415,1715670641349,-167.130044,0.0004393,7]
[326977416,1715670641359,-151.0,0.0004393,7]
[326977417,1715670641368,-181.55166,0.0004393,7]
[326977418,1715670641377,-181.55166,0.0004393,7]
[326977419,1715670641387,-150.0,0.00044141,2]
[326977420,1715670641395,-301.60790972,0.00044196,4]
[326977421,1715670641405,-150.0,0.00044622,2]
[326977422,1715670641413,-150.0,0.00044877,2]
[326977423,1715670641423,-603.21581943,0.00044939,7]
[326977424,1715670641432,-293.773,0.00044998,2]
[326977425,1715670641441,-464.0,0.00045,120]
[326977426,1715670641450,-172.46853309,0.00045,111]
[326977427,1715670641459,-6694.94666486,0.00045,120]
[326977428,1715670641468,-5000.0,0.00045,8]
[326977429,1715670641477,-151.0,0.00045,7]
[326977430,1715670641486,-902.281355,0.00045,7]
[326977431,1715670641496,-217.611997,0.00045,7]
[326977432,1715670641505,-151.0,0.00045,7]
[326977433,1715670641514,-178.9989,0.00045,7]
[326977434,1715670641523,-178.9989,0.00045,7]
[326977435,1715670641532,-702.892299,0.00045,7]
[326977436,1715670641541,-702.892299,0.00045,7]
[326977437,1715670641550,-1271.662772,0.00045,7]
[326977438,1715670641559,-485.850773,0.00045,2]
[326977439,1715670641568,-153.0,0.00045247,2]
[326977440,1715670641577,-306.0,0.00045247,2]
[326977441,1715670641586,-153.0,0.00045247,2]
[326977442,1715670641595,-1573.55459932,0.000455,15]
[326977443,1715670641604,-1573.71175048,0.000455,15]
[326977444,1715670641614,-534.00935393,0.000467,30]
[326977445,1715670641624,-1000.0,0.00046779,5]
[326977446,1715670641633,-2027.0637988,0.0004678,120]
[326977447,1715670641642,-164.0,0.00047,90]
[326977448,1715670641651,-165.499447,0.00048767,2]
[326977449,1715670641660,-170.97025342,0.0004988,30]
[326977450,1715670641669,-155.46278014,0.0005,30]
[326977451,1715670641679,-588.79471468,0.0005,120]
[326977452,1715670641688,-5000.0,0.0005,10]
[326977453,1715670641698,-227.355618,0.0005,7]
[326977454,1715670641707,-227.355618,0.0005,7]
[326977455,1715670641716,-351.04623,0.0005,7]
[326977456,1715670641725,-351.04623,0.0005,7]
[326977457,1715670641734,-151.0,0.0005,7]
[326977458,1715670641744,-319.297825,0.0005,7]
[326977459,1715670641753,-319.297825,0.0005,7]
[326977460,1715670641762,-151.0,0.0005,7]
[326977461,1715670641771,-151.0,0.0005,7]
[326977462,1715670641781,-788.512884,0.0005,7]
[326977463,1715670641791,-2240.09255,0.0005,7]
[326977464,1715670641802,-1668.034838,0.0005,7]
[326977465,1715670641811,-788.512884,0.0005,7]
[326977466,1715670641822,-2240.09255,0.0005,7]
[326977467,1715670641831,-337.182548,0.0005,7]
[326977468,1715670641841,-1668.034838,0.0005,7]
[326977469,1715670641851,-337.182548,0.0005,7]
[326977470,1715670641860,-1868.77064,0.0005,7]
[326977471,1715670641870,-1868.77064,0.0005,7]
[326977472,1715670641880,-244.001732,0.0005,7]
[326977473,1715670641889,-244.001732,0.0005,7]
[326977474,1715670641898,-531.175051,0.0005,7]
[326977475,1715670641907,-531.175051,0.0005,7]
[326977476,1715670641916,-1223.385485,0.0005,7]
[326977477,1715670641925,-1223.385485,0.0005,7]
[326977478,1715670641934,-1201.959778,0.0005,7]
[326977479,1715670641944,-1201.959778,0.0005,7]
[326977480,1715670641953,-151.0,0.0005,120]
[326977481,1715670641963,-151.0,0.00050438,7]
[326977482,1715670641972,-181.55166,0.00050438,7]
[326977483,1715670641981,-181.55166,0.00050438,7]
[326977484,1715670641990,-5000.0,0.00050466,30]
[326977485,1715670641999,-5000.0,0.00051151,30]
[326977486,1715670642009,-485.850773,0.00051151,2]
[326977487,1715670642018,-244.45580624,0.0005144,10]
[326977488,1715670642027,-157.498886,0.00051808,7]
[326977489,1715670642037,-902.281355,0.00051808,7]
[326977490,1715670642046,-154.876893,0.00051808,7]
[326977491,1715670642056,-178.9989,0.00051808,7]
[326977492,1715670642065,-178.9989,0.00051808,7]
[326977493,1715670642075,-702.892299,0.00051808,7]
[326977494,1715670642084,-702.892299,0.00051808,7]
[326977495,1715670642093,-1271.662772,0.00051808,7]
[326977496,1715670642103,-5000.0,0.00051836,30]
[326977497,1715670642112,-5000.0,0.00052521,30]
[326977498,1715670642121,-153.0,0.00052684,2]
[326977499,1715670642130,-153.0,0.00052684,2]
[326977500,1715670642139,-153.0,0.00052684,2]
[326977501,1715670642149,-153.0,0.00052684,2]
[326977502,1715670642158,-153.0,0.00052684,2]
[326977503,1715670642167,-600.0,0.000528,2]
[326977504,1715670642176,-227.355618,0.00053178,7]
[326977505,1715670642185,-227.355618,0.00053178,7]
[326977506,1715670642195,-351.04623,0.00053178,7]
[326977507,1715670642203,-351.04623,0.00053178,7]
[326977508,1715670642217,-151.0,0.00053178,7]
[326977509,1715670642226,-319.297825,0.00053178,7]
[326977510,1715670642236,-319.297825,0.00053178,7]
[326977511,1715670642247,-151.0,0.00053178,7]
[326977512,1715670642256,-151.0,0.00053178,7]
[326977513,1715670642265,-788.512884,0.00053178,7]
[326977514,1715670642274,-2240.09255,0.00053178,7]
[326977515,1715670642283,-1668.034838,0.00053178,7]
[326977516,1715670642295,-788.512884,0.00053178,7]
[326977517,1715670642304,-2240.09255,0.00053178,7]
[326977518,1715670642313,-337.182548,0.00053178,7]
[326977519,1715670642323,-1668.034838,0.00053178,7]
[326977520,1715670642332,-337.182548,0.00053178,7]
[326977521,1715670642341,-1868.77064,0.00053178,7]
[326977522,1715670642350,-1868.77064,0.00053178,7]
[326977523,1715670642359,-244.001732,0.00053178,7]
[326977524,1715670642368,-244.001732,0.00053178,7]
[326977525,1715670642378,-531.175051,0.00053178,7]
[326977526,1715670642388,-531.175051,0.00053178,7]
[326977527,1715670642399,-1223.385485,0.00053178,7]
[326977528,1715670642410,-1223.385485,0.00053178,7]
[326977529,1715670642420,-1201.959778,0.00053178,7]
[326977530,1715670642430,-1201.959778,0.00053178,7]
[326977531,1715670642441,-5000.0,0.00053205,30]
[326977532,1715670642450,-600.0,0.0005335,2]
[326977533,1715670642460,-478.0,0.00053789,120]
[326977534,1715670642471,-5000.0,0.0005389,30]
[326977535,1715670642481,-600.0,0.000539,2]
[326977536,1715670642492,-4000.0,0.00054,120]
[326977537,1715670642557,-600.0,0.0005445,2]
[326977538,1715670642568,-151.0,0.00054548,7]
[326977539,1715670642578,-181.55166,0.00054548,7]
[326977540,1715670642587,-181.55166,0.00054548,7]
[326977541,1715670642597,-178.9989,0.00054548,7]
[326977542,1715670642607,-178.9989,0.00054548,7]
[326977543,1715670642618,-702.892299,0.00054548,7]
[326977544,1715670642629,-702.892299,0.00054548,7]
[326977545,1715670642639,-1271.662772,0.00054548,7]
[326977546,1715670642650,-5000.0,0.00054575,30]
[326977547,1715670642659,-1004.89416608,0.00054794,120]
[326977548,1715670642669,-902.281355,0.00054794,7]
[326977549,1715670642679,-191.37530292,0.00054795,120]
[326977550,1715670642689,-191.87,0.00054795,120]
[326977551,1715670642698,-3622.032216,0.00054795,60]
[326977552,1715670642707,-3622.032216,0.00054795,60]
[326977553,1715670642716,-3622.032216,0.00054795,60]
[326977554,1715670642726,-3622.032216,0.00054795,60]
[326977555,1715670642735,-3622.032216,0.00054795,60]
[326977556,1715670642744,-3622.032216,0.00054795,60]
[326977557,1715670642753,-3622.032216,0.00054795,60]
[326977558,1715670642763,-3622.032216,0.00054795,60]
[326977559,1715670642772,-3622.032216,0.00054795,60]
[326977560,1715670642781,-3622.032216,0.00054795,60]
[326977561,1715670642790,-3622.032216,0.00054795,60]
[326977562,1715670642799,-3622.032216,0.00054795,60]
[326977563,1715670642808,-3622.032216,0.00054795,60]
[326977564,1715670642818,-3622.032216,0.00054795,60]
[326977565,1715670642827,-3622.032216,0.00054795,60]
[326977566,1715670642836,-3622.032216,0.00054795,60]
[326977567,1715670642846,-902.281355,0.00054795,120]
[326977568,1715670642855,-902.281363,0.00054795,120]
[326977569,1715670642864,-288.774812,0.00054795,120]
[326977570,1715670642874,-181.55166,0.00054795,120]
[326977571,1715670642883,-181.551653,0.00054795,120]
[326977572,1715670642893,-500.0,0.00054795,31]
[326977573,1715670642903,-500.0,0.00054795,31]
[326977574,1715670642913,-500.0,0.00054795,31]
[326977575,1715670642923,-500.0,0.00054795,31]
[326977576,1715670642932,-500.0,0.00054795,31]
[326977577,1715670642941,-500.0,0.00054795,31]
[326977578,1715670642950,-500.0,0.00054795,31]
[326977579,1715670642960,-500.0,0.00054795,31]
[326977580,1715670642969,-500.0,0.00054795,31]
[326977581,1715670642979,-500.0,0.00054795,31]
[326977582,1715670642988,-500.0,0.00054795,31]
[326977583,1715670642998,-500.0,0.00054795,31]
[326977584,1715670643008,-500.0,0.00054795,31]
[326977585,1715670643018,-500.0,0.00054795,31]
[326977586,1715670643027,-500.0,0.00054795,31]
[326977587,1715670643037,-500.0,0.00054795,31]
[326977588,1715670643047,-500.0,0.00054795,31]
[326977589,1715670643056,-613.0,0.00054795,31]
[326977591,1715670643066,-500.0,0.00054795,31]
[326977593,1715670643075,-500.0,0.00054795,31]
[326977595,1715670643084,-500.0,0.00054795,31]
[326977596,1715670643094,-500.0,0.00054795,31]
[326977598,1715670643103,-200.0,0.00054795,31]
[326977600,1715670643113,-227.355618,0.00054795,120]
[326977602,1715670643122,-227.355618,0.00054795,120]
[326977603,1715670643132,-351.04623,0.00054795,120]
[326977604,1715670643141,-351.04623,0.00054795,120]
[326977605,1715670643150,-351.04623,0.00054795,120]
[326977606,1715670643159,-351.046228,0.00054795,120]
[326977607,1715670643168,-151.0,0.00054795,120]
[326977608,1715670643177,-151.0,0.00054795,120]
[326977609,1715670643187,-319.297825,0.00054795,120]
[326977610,1715670643198,-319.297825,0.00054795,120]
[326977613,1715670643212,-319.297825,0.00054795,120]
[326977617,1715670643222,-319.29782,0.00054795,120]
[326977620,1715670643231,-151.0,0.00054795,120]
[326977623,1715670643240,-151.0,0.00054795,120]
[326977626,1715670643251,-3622.032216,0.00054795,60]
[326977628,1715670643260,-3622.032216,0.00054795,60]
[326977631,1715670643270,-3622.032216,0.00054795,60]
[326977634,1715670643279,-3622.032211,0.00054795,60]
[326977636,1715670643290,-788.512884,0.00054795,120]
[326977637,1715670643300,-788.512884,0.00054795,120]
[326977639,1715670643309,-2240.09255,0.00054795,120]
[326977640,1715670643319,-2240.09255,0.00054795,120]
[326977643,1715670643329,-1668.034838,0.00054795,120]
[326977646,1715670643338,-788.512884,0.00054795,120]
[326977649,1715670643348,-1668.034838,0.00054795,120]
[326977651,1715670643357,-788.512879,0.00054795,120]
[326977653,1715670643367,-2240.09255,0.00054795,120]
[326977655,1715670643377,-2240.092559,0.00054795,120]
[326977657,1715670643386,-337.182548,0.00054795,120]
[326977659,1715670643396,-1668.034838,0.00054795,120]
[326977661,1715670643406,-1668.03483634,0.00054795,120]
[326977663,1715670643415,-337.182548,0.00054795,120]
[326977664,1715670643427,-337.182548,0.00054795,120]
[326977665,1715670643438,-337.182547,0.00054795,120]
[326977666,1715670643448,-1868.77064,0.00054795,120]
[326977667,1715670643457,-1868.77064,0.00054795,120]
[326977668,1715670643466,-1868.77064,0.00054795,120]
[326977669,1715670643475,-1868.770642,0.00054795,120]
[326977670,1715670643485,-244.001732,0.00054795,120]
[326977671,1715670643494,-244.001732,0.00054795,120]
[326977672,1715670643503,-244.001732,0.00054795,120]
[326977673,1715670643512,-244.001737,0.00054795,120]
[326977674,1715670643522,-531.175051,0.00054795,120]
[326977675,1715670643531,-531.175051,0.00054795,120]
[326977676,1715670643540,-531.175051,0.00054795,120]
[326977677,1715670643550,-531.175046,0.00054795,120]
[326977678,1715670643559,-1223.385485,0.00054795,120]
[326977680,1715670643569,-1223.385485,0.00054795,120]
[326977682,1715670643578,-1223.385485,0.00054795,120]
[326977683,1715670643587,-1223.385488,0.00054795,120]
[326977684,1715670643596,-1201.959778,0.00054795,120]
[326977685,1715670643605,-1201.959778,0.00054795,120]
[326977686,1715670643614,-1201.959778,0.00054795,120]
[326977687,1715670643624,-1201.959777,0.00054795,120]
[326977688,1715670643633,-178.9989,0.00054795,120]
[326977689,1715670643643,-178.9989,0.00054795,120]
[326977690,1715670643653,-178.9989,0.00054795,120]
[326977691,1715670643663,-178.998902,0.00054795,120]
[326977692,1715670643674,-702.892299,0.00054795,120]
[326977693,1715670643683,-702.892299,0.00054795,120]
[326977694,1715670643695,-702.892299,0.00054795,120]
[326977695,1715670643704,-702.892299,0.00054795,120]
[326977696,1715670643713,-1271.662772,0.00054795,120]
[326977697,1715670643723,-1271.662772,0.00054795,120]
[326977698,1715670643732,-335.0,0.00055,120]
[326977699,1715670643797,-5000.0,0.00055,30]
[326977700,1715670643809,-1000.0,0.00055,4]
[326977701,1715670643819,-600.0,0.00055,2]
[326977702,1715670643828,-5068.0,0.0005526,30]
[326977703,1715670643839,-906.53186591,0.0005555,2]
[326977704,1715670643849,-426.2,0.0005589,120]
[326977705,1715670643858,-5054.23797935,0.000599,30]
[326977706,1715670643867,-290.39496729,0.000599,105]
[326977707,1715670643878,-290.39496726,0.000599,105]
[326977708,1715670643887,-290.39496726,0.000599,105]
[326977709,1715670643897,-290.39496726,0.000599,105]
[326977710,1715670643906,-290.39496726,0.000599,105]
[326977711,1715670643916,-754.04469609,0.000599,105]
[326977712,1715670643925,-754.04469605,0.000599,105]
[326977713,1715670643935,-754.04469605,0.000599,105]
[326977714,1715670643945,-754.04469605,0.000599,105]
[326977715,1715670643955,-754.04469605,0.000599,105]
[326977716,1715670643964,-754.04469605,0.000599,105]
[326977717,1715670643973,-754.04469605,0.000599,105]
[326977718,1715670643984,-754.04469605,0.000599,105]
[326977719,1715670643993,-754.04469605,0.000599,105]
[326977720,1715670644003,-754.04469605,0.000599,105]
[326977721,1715670644012,-227.355618,0.000599,120]
[326977722,1715670644022,-227.35562,0.000599,120]
[326977723,1715670644032,-1001.66228837,0.0006,2]
[326977724,1715670644041,-7002.51689497,0.0006,120]
[326977725,1715670644051,-90616.58957556,0.0006,120]
[326977732,1715670648250,-485.850773,0.00020912,2]
[326977733,1715670648261,-2397.03538122,0.00020913,2]
[326977734,1715670648272,-59359.862772,0.00020913,2]
[326977735,1715670648282,-589.0,0.000261,2]
[326977736,1715670648294,-1271.662772,0.000392,2]
[326977737,1715670648304,-485.850773,0.000392,2]
[326977738,1715670648313,-485.850773,0.000433,2]
[326977739,1715670648323,-1271.662772,0.000435,7]
[326977740,1715670648333,-1271.662772,0.000435,7]
[326977741,1715670648342,-485.850773,0.000435,2]
[326977742,1715670648352,-485.850773,0.00043832,2]
[326977743,1715670648361,-1271.662772,0.000439,7]
[326977744,1715670648371,-485.850773,0.000439,2]
[326977745,1715670648380,-1271.662772,0.00045,7]
[326977746,1715670648389,-485.850773,0.00045,2]
[326977747,1715670648398,-485.850773,0.00051151,2]
[326977748,1715670648408,-1271.662772,0.00051808,7]
[326977749,1715670648417,-485.850773,0.00054,2]
[326977750,1715670648427,-485.850773,0.00054,2]
[326977751,1715670648437,-1271.662772,0.00054548,7]
[326977752,1715670648449,-485.850773,0.00054795,2]
[326977753,1715670648458,-1271.662772,0.00054795,120]
[326977754,1715670648467,-1271.662771,0.00054795,120]
[326977755,1715670648476,-485.85077,0.00054795,2]
[326977756,1715670648486,-7471.18862438,0.0006,120]
[326977757,1715670648496,-5000.0,0.0006,120]
[326977758,1715670648505,-2583.0,0.0006,120]
[326977759,1715670648515,-160.0,0.0006,60]
[326977760,1715670648524,-151.99669456,0.0006022,120]
[326977761,1715670648534,-604.5,0.00060822,120]
[326977762,1715670648543,-165.499447,0.0006137,2]
[326977763,1715670648553,-165.562968,0.0006137,2]
[326977764,1715670648563,-840.76,0.00065,120]
[326977765,1715670648572,-150.80395486,0.00065199,2]
[326977766,1715670648582,-604.5,0.00065753,120]
[326977767,1715670648591,-150.2,0.00065753,120]
[326977768,1715670648600,-153.0,0.00066768,2]
[326977769,1715670648610,-153.0,0.00066768,2]
[326977770,1715670648619,-153.25024234,0.00068638,120]
[326977771,1715670648629,-153.25024234,0.00069828,120]
[326977772,1715670648638,-2230.98896664,0.0007,120]
[326977773,1715670648647,-606.37705008,0.0007,7]
[326977774,1715670648656,-171.93240389,0.0007,120]
[326977775,1715670648666,-283.97976715,0.0007,120]
[326977776,1715670648675,-500.0,0.0007,30]
[326977777,1715670648765,-5000.0,0.000705,120]
[326977778,1715670648776,-153.25024234,0.00071018,120]
[326977779,1715670648786,-151.0,0.00071808,120]
[326977780,1715670648795,-500.0,0.00072,30]
[326977781,1715670648806,-153.25024234,0.00072209,120]
[326977782,1715670648815,-1000.0,0.000725,2]
[326977783,1715670648825,-5000.0,0.000729,120]
[326977784,1715670648835,-182.26635414,0.00072999,120]
[326977785,1715670648844,-153.25024234,0.00073399,120]
[326977786,1715670648854,-165.499447,0.00073973,120]
[326977787,1715670648864,-153.25024234,0.00074589,120]
[326977788,1715670648873,-200.0,0.00075,120]
[326977789,1715670648883,-500.0,0.00075,30]
[326977790,1715670648892,-153.25024234,0.00075779,120]
[326977791,1715670648902,-5000.0,0.000759,120]
[326977792,1715670648911,-153.25024234,0.0007697,120]
[326977793,1715670648920,-826.8,0.00077,60]
[326977794,1715670648930,-9402.4576169,0.000778,2]
[326977795,1715670648942,-906.84,0.0007799,3]
[326977796,1715670648953,-187.03,0.00077999,30]
[326977797,1715670648963,-187.03,0.00077999,30]
[326977798,1715670648972,-3767.95146204,0.00078,120]
[326977799,1715670648981,-29705.09573989,0.00078,120]
[326977800,1715670648991,-153.25024234,0.0007816,120]
[326977801,1715670649001,-5999.999999,0.0007845,120]
[326977802,1715670649010,-2923.89119874,0.000786,30]
[326977803,1715670649019,-1012.12414625,0.00078657,4]
[326977804,1715670649029,-100840.25,0.000787,120]
[326977805,1715670649039,-354.32896057,0.000788,120]
[326977806,1715670649049,-163198.466588,0.0007888,30]
[326977807,1715670649060,-5000.0,0.000789,120]
[326977808,1715670649070,-1868.0,0.000789,120]
[326977809,1715670649079,-1868.0,0.000789,120]
[326977810,1715670649089,-416.3450883,0.00078904,60]
[326977811,1715670649099,-307.3427078,0.00078904,60]
[326977812,1715670649108,-3052.0,0.00079,120]
[326977813,1715670649118,-297.99223298,0.00079,120]
[326977814,1715670649128,-500.0,0.00079,30]
[326977815,1715670649138,-998.0,0.00079205,120]
[326977816,1715670649148,-995.0,0.00079205,120]
[326977817,1715670649158,-153.75,0.0007935,120]
[326977818,1715670649167,-10000.0,0.000794,4]
[326977819,1715670649177,-10000.007501,0.000794,6]
[326977820,1715670649187,-1000.0,0.000794,30]
[326977821,1715670649196,-4498.65923092,0.0007945,120]
[326977822,1715670649215,-3000.0,0.00079452,2]
[326977823,1715670649224,-500.0,0.00079452,120]
[326977824,1715670649234,-509.30437142,0.00079452,2]
[326977825,1715670649244,-500.0,0.00079452,120]
[326977826,1715670649254,-156.29149591,0.00079452,120]
[326977827,1715670649264,-505.97532885,0.00079452,120]
[326977828,1715670649274,-541.24352065,0.00079452,120]
[326977829,1715670649283,-1667.18,0.00079452,120]
[326977830,1715670649302,-501.70439107,0.00079452,120]
[326977831,1715670649322,-500.0,0.00079452,120]
[326977832,1715670649336,-228.81295816,0.00079452,120]
[326977833,1715670649353,-503.80342427,0.00079452,120]
[326977834,1715670649370,-512.37177664,0.00079452,120]
[326977835,1715670649387,-507.63708603,0.00079452,120]
[326977836,1715670649408,-500.0,0.00079452,120]
[326977837,1715670649425,-503.98818823,0.00079452,120]
[326977838,1715670649440,-500.0,0.00079452,120]
[326977839,1715670649458,-511.03987752,0.00079452,120]
[326977840,1715670649473,-521.49517145,0.00079452,120]
[326977841,1715670649487,-505.94433755,0.00079452,120]
[326977842,1715670649504,-506.43968625,0.00079452,120]
[326977843,1715670649520,-504.88104787,0.00079452,120]
[326977844,1715670649535,-500.0,0.00079452,120]
[326977845,1715670649553,-501.56300328,0.00079452,120]
[326977846,1715670649567,-520.83339548,0.00079452,120]
[326977847,1715670649579,-509.59798596,0.00079452,30]
[326977848,1715670649592,-501.62832115,0.00079452,120]
[326977849,1715670649608,-200.091426,0.00079452,30]
[326977850,1715670649622,-502.77777337,0.00079452,120]
[326977851,1715670649635,-503.90909712,0.00079452,120]
[326977852,1715670649650,-503.3981969,0.00079452,120]
[326977853,1715670649662,-503.01847541,0.00079452,120]
[326977854,1715670649675,-500.0,0.00079452,120]
[326977855,1715670649688,-500.0,0.00079452,120]
[326977856,1715670649704,-500.0,0.00079452,120]
[326977857,1715670649717,-500.0,0.00079452,120]
[326977858,1715670649730,-500.0,0.00079452,120]
[326977859,1715670649742,-500.0,0.00079452,120]
[326977860,1715670649754,-500.0,0.00079452,120]
[326977861,1715670649767,-500.0,0.00079452,120]
[326977862,1715670649781,-500.0,0.00079452,120]
[326977863,1715670649794,-500.0,0.00079452,120]
[326977864,1715670649807,-500.0,0.00079452,120]
[326977865,1715670649819,-500.0,0.00079452,120]
[326977866,1715670649831,-500.0,0.00079452,120]
[326977867,1715670649843,-500.0,0.00079452,120]
[326977868,1715670649853,-500.0,0.00079452,120]
[326977869,1715670649862,-500.0,0.00079452,120]
[326977870,1715670649870,-500.0,0.00079452,120]
[326977871,1715670649877,-478.2875751,0.00079452,120]
[326977872,1715670649885,-501.54494569,0.00079452,120]
[326977873,1715670649892,-500.0,0.00079452,120]
[326977874,1715670649899,-501.89677971,0.00079452,120]
[326977875,1715670649909,-500.0,0.00079452,120]
[326977876,1715670649919,-502.71390221,0.00079452,120]
[326977877,1715670649928,-505.05589663,0.00079452,120]
[326977878,1715670649938,-504.17989085,0.00079452,120]